[Event "GER-ch Youth U14w 2019"]
[Site "Willingen"]
[Date "2019.06.12"]
[Round "5.6"]
[White "Heutling, Elina"]
[Black "Bildat, Emilia"]
[Result "1/2-1/2"]
[ECO "B38"]
[WhiteElo "1712"]
[BlackElo "1649"]
[Annotator "NA"]
[PlyCount "77"]
[EventDate "2019.06.07"]
[EventType "swiss"]
[EventRounds "9"]
[EventCountry "GER"]
[SourceTitle "playchess.com"]
[Source "ChessBase"]
[SourceQuality "1"]
[TimeControl "40/5400+30:1800+30"]

1. e4 {[%emt 0:00:00]} c5 {[%emt 0:00:00]} 2. Nf3 {[%emt 0:00:00]} Nc6 {[%emt 0:00:00]} 3. d4 {[%emt 0:00:08]} cxd4 {[%emt 0:00:00]} 4. Nxd4 {[%emt 0:00:05]} g6 {[%emt 0:00:02]} 5. c4 {[%emt 0:00:11]} Bg7 {[%emt 0:00:14]} 6. Be3 {[%emt 0:00:27]} Nf6 {[%emt 0:00:19]} 7. Nc3 {[%emt 0:00:19]} O-O {[%emt 0:00:19]} 8. Be2 {[%emt 0:00:41]} d6 {[%emt 0:00:24]} 9. f3 {[%emt 0:01:28]} Nxd4 {[%emt 0:00:33]} 10. Bxd4 {[%emt 0:00:28]} Be6 {[%emt 0:01:01]} 11. Qd2 {[%emt 0:03:02]} Nd7 {[%emt 0:02:08]} 12. Be3 {[%emt 0:00:36]} Rc8 {[%emt 0:01:30]} 13. Nd5 {[%emt 0:05:13]} Nc5 {[%emt 0:01:26]} 14. Rc1 {[%emt 0:05:07]} a5 {[%emt 0:02:36]} 15. O-O {[%emt 0:02:00]} a4 {[%emt 0:03:30]} 16. Rb1 {[%emt 0:17:29]} f5 {[%emt 0:03:57]} 17. Bg5 {[%emt 0:07:34]} Rf7 {[%emt 0:01:39]} 18. Qe3 {[%emt 0:10:04]} fxe4 {[%emt 0:05:09]} 19. fxe4 {[%emt 0:03:03]} Bf6 {[%emt 0:00:52]} 20. Nxf6+ {[%emt 0:06:17]} exf6 {[%emt 0:00:30]} 21. Bh4 {[%emt 0:00:23]} Nd7 {[%emt 0:01:43]} 22. b3 {[%emt 0:03:25]} axb3 {[%emt 0:02:14]} 23. axb3 {[%emt 0:00:11]} Qa5 {[%emt 0:00:50]} 24. Kh1 {[%emt 0:07:06]} f5 {[%emt 0:05:43]} 25. Ra1 {[%emt 0:05:00]} Qe5 {[%emt 0:01:53]} 26. Bg3 {[%emt 0:04:01]} Qxe4 {[%emt 0:01:54]} 27. Qxe4 {[%emt 0:00:17]} fxe4 {[%emt 0:00:06]} 28. Rxf7 {[%emt 0:02:36]} Kxf7 {[%emt 0:01:30]} 29. Bxd6 {[%emt 0:00:28]} Nc5 {[%emt 0:03:31]} 30. Ra7 {[%emt 0:03:58]} Kf6 {[%emt 0:03:35]} 31. Bxc5 {[%emt 0:02:22]} Rxc5 {[%emt 0:00:23]} 32. b4 {[%emt 0:04:27]} Rc7 {[%emt 0:01:04]} 33. c5 {[%emt 0:00:56]} Bd5 {[%emt 0:01:51]} 34. Kg1 {[%emt 0:03:34]} Ke5 {[%emt 0:01:08]} 35. Kf2 {[%emt 0:01:03]} Kd4 {[%emt 0:00:30]} 36. Ra3 {[%emt 0:00:25]} Rf7+ {[%emt 0:00:50]} 37. Ke1 {[%emt 0:01:12]} e3 {[%emt 0:02:34]} 38. Rd3+ {[%emt 0:01:52]} Ke4 {[%emt 0:00:25]} 39. Rd1 {[%emt 0:00:20] normal} 1/2-1/2

[Event "GER-ch Youth U14w 2019"]
[Site "Willingen"]
[Date "2019.06.12"]
[Round "5.7"]
[White "Kalina, Lena"]
[Black "Liu, Sijia Anna"]
[Result "1-0"]
[ECO "A49"]
[WhiteElo "1687"]
[BlackElo "1705"]
[Annotator "NA"]
[PlyCount "66"]
[EventDate "2019.06.07"]
[EventType "swiss"]
[EventRounds "9"]
[EventCountry "GER"]
[SourceTitle "playchess.com"]
[Source "ChessBase"]
[SourceQuality "1"]
[TimeControl "40/5400+30:1800+30"]

1. d4 {[%emt 0:00:00]} Nf6 {[%emt 0:00:00]} 2. Nf3 {[%emt 0:00:00]} g6 {[%emt 0:00:00]} 3. g3 {[%emt 0:00:00]} Bg7 {[%emt 0:00:08]} 4. Bg2 {[%emt 0:00:23]} O-O {[%emt 0:00:33]} 5. b3 {[%emt 0:00:33]} d6 {[%emt 0:02:42]} 6. Bb2 {[%emt 0:00:56]} Nc6 {[%emt 0:01:21]} 7. Nc3 {[%emt 0:06:19]} a6 {[%emt 0:03:23]} 8. Qd2 {[%emt 0:08:18]} Rb8 {[%emt 0:02:47]} 9. a3 {[%emt 0:09:26]} Bd7 {[%emt 0:06:58]} 10. e4 {[%emt 0:07:11]} Re8 {[%emt 0:04:13]} 11. O-O-O {[%emt 0:03:12]} b5 {[%emt 0:03:54]} 12. e5 {[%emt 0:06:07]} Ng4 {[%emt 0:07:57]} 13. Kb1 {[%emt 0:07:43]} dxe5 {[%emt 0:02:27]} 14. dxe5 {[%emt 0:01:10]} Ngxe5 {[%emt 0:01:37]} 15. Nxe5 {[%emt 0:02:31]} Nxe5 {[%emt 0:01:03]} 16. f4 {[%emt 0:01:39]} Nc4 {[%emt 0:08:39]} 17. Qxd7 {[%emt 0:03:30]} Qxd7 {[%emt 0:01:21]} 18. Rxd7 {[%emt 0:00:30]} Nxa3+ {[%emt 0:02:36]} 19. Bxa3 {[%emt 0:05:04]} b4 {[%emt 0:02:09]} 20. Bc1 {[%emt 0:02:31]} Bxc3 {[%emt 0:02:24]} 21. Bb2 {[%emt 0:01:37]} c5 {[%emt 0:08:23]} 22. Bxc3 {[%emt 0:03:20]} bxc3 {[%emt 0:00:09]} 23. Bd5 {[%emt 0:01:04]} e6 {[%emt 0:01:33]} 24. Bc4 {[%emt 0:00:55]} Rb4 {[%emt 0:05:25]} 25. Rhd1 {[%emt 0:04:16]} Kg7 {[%emt 0:03:07]} 26. Rd8 {[%emt 0:00:53]} Rxd8 {[%emt 0:03:08]} 27. Rxd8 {[%emt 0:00:07]} Rb7 {[%emt 0:02:51]} 28. Bxa6 {[%emt 0:01:07]} Ra7 {[%emt 0:01:06]} 29. Bc4 {[%emt 0:00:45]} Kf6 {[%emt 0:01:31]} 30. Rd3 {[%emt 0:02:08]} Kf5 {[%emt 0:00:49]} 31. h3 {[%emt 0:01:52]} g5 {[%emt 0:02:56]} 32. fxg5 {[%emt 0:01:33]} Kxg5 {[%emt 0:00:11]} 33. Rxc3 {[%emt 0:04:36]} h6 {[%emt 0:03:00] normal} 1-0

[Event "GER-ch Youth U14w 2019"]
[Site "Willingen"]
[Date "2019.06.12"]
[Round "5.8"]
[White "Gerber, Anna Sophie"]
[Black "Zoellner, Bente"]
[Result "1-0"]
[ECO "A48"]
[WhiteElo "1473"]
[BlackElo "1530"]
[Annotator "NA"]
[PlyCount "85"]
[EventDate "2019.06.07"]
[EventType "swiss"]
[EventRounds "9"]
[EventCountry "GER"]
[SourceTitle "playchess.com"]
[Source "ChessBase"]
[SourceQuality "1"]
[TimeControl "40/5400+30:1800+30"]

1. d4 {[%emt 0:00:00]} Nf6 {[%emt 0:00:00]} 2. Nf3 {[%emt 0:00:00]} g6 {[%emt 0:00:00]} 3. c4 {[%emt 0:00:04]} c5 {[%emt 0:00:34]} 4. d5 {[%emt 0:00:43]} b5 {[%emt 0:00:20]} 5. e3 {[%emt 0:05:46]} bxc4 {[%emt 0:06:46]} 6. Bxc4 {[%emt 0:02:12]} d6 {[%emt 0:02:14]} 7. Nc3 {[%emt 0:02:07]} Bg7 {[%emt 0:01:15]} 8. O-O {[%emt 0:04:59]} O-O {[%emt 0:00:29]} 9. h3 {[%emt 0:02:15]} Nbd7 {[%emt 0:03:13]} 10. e4 {[%emt 0:03:25]} Qb6 {[%emt 0:06:05]} 11. Qc2 {[%emt 0:02:54]} Ba6 {[%emt 0:05:04]} 12. Bxa6 {[%emt 0:01:57]} Qxa6 {[%emt 0:00:16]} 13. Be3 {[%emt 0:01:30]} Rfb8 {[%emt 0:04:31]} 14. Rab1 {[%emt 0:03:15]} Rb7 {[%emt 0:10:15]} 15. Rfc1 {[%emt 0:06:09]} Rab8 {[%emt 0:03:39]} 16. b3 {[%emt 0:05:46]} Qa3 {[%emt 0:03:08]} 17. Nd2 {[%emt 0:04:18]} Ne5 {[%emt 0:07:02]} 18. f4 {[%emt 0:03:49]} Ned7 {[%emt 0:00:58]} 19. Nc4 {[%emt 0:01:32]} Qa6 {[%emt 0:01:13]} 20. e5 {[%emt 0:12:17]} Ne8 {[%emt 0:06:10]} 21. Qe4 {[%emt 0:07:28]} f5 {[%emt 0:06:45]} 22. exf6 {[%emt 0:03:26]} Ndxf6 {[%emt 0:01:57]} 23. Qf3 {[%emt 0:04:21]} Nc7 {[%emt 0:05:11]} 24. f5 {[%emt 0:02:33]} Kf7 {[%emt 0:03:54]} 25. fxg6+ {[%emt 0:00:59]} hxg6 {[%emt 0:00:19]} 26. g4 {[%emt 0:02:12]} Ke8 {[%emt 0:04:07]} 27. Bg5 {[%emt 0:02:58]} Nb5 {[%emt 0:04:11]} 28. Re1 {[%emt 0:03:39]} Nxc3 {[%emt 0:03:34]} 29. Qxc3 {[%emt 0:00:42]} Kf7 {[%emt 0:02:22]} 30. Rf1 {[%emt 0:01:41]} Kg8 {[%emt 0:01:11]} 31. Bxf6 {[%emt 0:03:14]} Bxf6 {[%emt 0:00:25]} 32. Qc2 {[%emt 0:01:10]} Kg7 {[%emt 0:00:41]} 33. Rbe1 {[%emt 0:00:44]} Rf8 {[%emt 0:01:55]} 34. Re6 {[%emt 0:01:14]} Bd4+ {[%emt 0:01:39]} 35. Kg2 {[%emt 0:00:21]} Rxf1 {[%emt 0:00:09]} 36. Kxf1 {[%emt 0:00:12]} Bf6 {[%emt 0:00:13]} 37. g5 {[%emt 0:00:30]} Be5 {[%emt 0:03:38]} 38. Qxg6+ {[%emt 0:00:41]} Kf8 {[%emt 0:00:29]} 39. Qf5+ {[%emt 0:01:45]} Ke8 {[%emt 0:02:42]} 40. g6 {[%emt 0:02:10]} Qxa2 {[%emt 0:00:36]} 41. Qf7+ {[%emt 0:31:34]} Kd8 {[%emt 0:01:27]} 42. Qf8+ {[%emt 0:00:00]} Kc7 {[%emt 0:06:29]} 43. Rxe7# {[%emt 0:00:00] normal} 1-0

[Event "GER-ch Youth U14w 2019"]
[Site "Willingen"]
[Date "2019.06.12"]
[Round "5.9"]
[White "Petersen, Sophie"]
[Black "Albayrak, Nese Pinar"]
[Result "0-1"]
[ECO "C70"]
[WhiteElo "1430"]
[BlackElo "1530"]
[Annotator "NA"]
[PlyCount "176"]
[EventDate "2019.06.07"]
[EventType "swiss"]
[EventRounds "9"]
[EventCountry "GER"]
[SourceTitle "playchess.com"]
[Source "ChessBase"]
[SourceQuality "1"]
[TimeControl "40/5400+30:1800+30"]

1. e4 {[%emt 0:00:00]} e5 {[%emt 0:00:00]} 2. Nf3 {[%emt 0:00:00]} Nc6 {[%emt 0:00:00]} 3. Bb5 {[%emt 0:00:10]} a6 {[%emt 0:00:00]} 4. Ba4 {[%emt 0:00:12]} b5 {[%emt 0:00:29]} 5. Bb3 {[%emt 0:00:09]} Bc5 {[%emt 0:00:22]} 6. O-O {[%emt 0:00:27]} Nf6 {[%emt 0:01:32]} 7. Re1 {[%emt 0:01:21]} d6 {[%emt 0:00:47]} 8. c3 {[%emt 0:00:19]} O-O {[%emt 0:00:46]} 9. h3 {[%emt 0:00:58]} Re8 {[%emt 0:02:36]} 10. d4 {[%emt 0:03:54]} exd4 {[%emt 0:05:25]} 11. cxd4 {[%emt 0:00:31]} Bb4 {[%emt 0:00:53]} 12. Nc3 {[%emt 0:00:26]} Bb7 {[%emt 0:10:55]} 13. Bc2 {[%emt 0:06:07]} Ne7 {[%emt 0:06:16]} 14. Bg5 {[%emt 0:01:55]} Ng6 {[%emt 0:07:52]} 15. a3 {[%emt 0:09:38]} Ba5 {[%emt 0:09:11]} 16. b4 {[%emt 0:02:47]} Bb6 {[%emt 0:00:08]} 17. a4 {[%emt 0:03:42]} c6 {[%emt 0:09:36]} 18. a5 {[%emt 0:01:01]} Bc7 {[%emt 0:01:27]} 19. Qd2 {[%emt 0:06:37]} h6 {[%emt 0:06:38]} 20. Be3 {[%emt 0:04:55]} Qd7 {[%emt 0:04:32]} 21. d5 {[%emt 0:03:16]} Rad8 {[%emt 0:05:02]} 22. Bd4 {[%emt 0:05:51]} Nh5 {[%emt 0:09:43]} 23. dxc6 {[%emt 0:02:51]} Bxc6 {[%emt 0:02:34]} 24. Nd5 {[%emt 0:02:51]} Bxd5 {[%emt 0:05:03]} 25. exd5 {[%emt 0:00:19]} Ne5 {[%emt 0:03:12]} 26. Qc3 {[%emt 0:05:00]} Nf6 {[%emt 0:03:56]} 27. Bb3 {[%emt 0:00:45]} Rc8 {[%emt 0:00:58]} 28. Bxe5 {[%emt 0:06:05]} dxe5 {[%emt 0:00:11]} 29. Qd2 {[%emt 0:03:59]} Qd6 {[%emt 0:02:21]} 30. Rac1 {[%emt 0:01:10]} e4 {[%emt 0:00:22]} 31. Rc6 {[%emt 0:03:06]} Qf4 {[%emt 0:02:06]} 32. Qxf4 {[%emt 0:00:18]} Bxf4 {[%emt 0:00:01]} 33. Nh4 {[%emt 0:03:09]} Rxc6 {[%emt 0:00:37]} 34. dxc6 {[%emt 0:00:16]} Rc8 {[%emt 0:00:52]} 35. Nf5 {[%emt 0:01:03]} Kf8 {[%emt 0:00:34]} 36. Rd1 {[%emt 0:02:31]} g6 {[%emt 0:00:26]} 37. Nd4 {[%emt 0:02:01]} Be5 {[%emt 0:00:32]} 38. g3 {[%emt 0:04:45]} Bxd4 {[%emt 0:00:23]} 39. Rxd4 {[%emt 0:00:33]} Rxc6 {[%emt 0:00:08]} 40. Kf1 {[%emt 0:01:15]} Rc3 {[%emt 0:00:58]} 41. Bd1 {[%emt 0:30:46]} Rd3 {[%emt 0:01:19]} 42. Rxd3 {[%emt 0:00:00]} exd3 {[%emt 0:00:05]} 43. Ke1 {[%emt 0:00:00]} Nd5 {[%emt 0:00:10]} 44. Bf3 {[%emt 0:00:00]} Nxb4 {[%emt 0:00:18]} 45. Kd2 {[%emt 0:00:00]} Nc2 {[%emt 0:08:16]} 46. Bb7 {[%emt 0:00:00]} Na1 {[%emt 0:08:08]} 47. Kxd3 {[%emt 0:00:00]} Nb3 {[%emt 0:00:08]} 48. Kc3 {[%emt 0:00:00]} Nc5 {[%emt 0:06:41]} 49. Bd5 {[%emt 0:00:00]} Ke7 {[%emt 0:00:23]} 50. Kd4 {[%emt 0:00:00]} Nd7 {[%emt 0:00:50]} 51. Bb7 {[%emt 0:00:00]} Nb8 {[%emt 0:00:09]} 52. f4 {[%emt 0:00:00]} Kd6 {[%emt 0:00:31]} 53. g4 {[%emt 0:00:00]} Nc6+ {[%emt 0:00:27]} 54. Bxc6 {[%emt 0:00:00]} Kxc6 {[%emt 0:00:04]} 55. h4 {[%emt 0:00:00]} f6 {[%emt 0:01:09]} 56. g5 {[%emt 0:00:00]} hxg5 {[%emt 0:07:29]} 57. f5 {[%emt 0:00:00]} gxf5 {[%emt 0:02:26]} 58. h5 {[%emt 0:00:00]} g4 {[%emt 0:00:10]} 59. h6 {[%emt 0:00:00]} g3 {[%emt 0:00:04]} 60. h7 {[%emt 0:00:00]} g2 {[%emt 0:00:05]} 61. h8=Q g1=Q+ {[%emt 0:00:17]} 62. Kd3 {[%emt 0:00:00]} Qb1+ {[%emt 0:00:22]} 63. Kd2 {[%emt 0:00:00]} Qb4+ {[%emt 0:00:34]} 64. Kc2 {[%emt 0:00:00]} Qc4+ {[%emt 0:00:36]} 65. Kd2 {[%emt 0:00:00]} Qd4+ {[%emt 0:00:20]} 66. Kc2 {[%emt 0:00:00]} Qe4+ {[%emt 0:00:06]} 67. Kd2 {[%emt 0:00:00]} Qg2+ {[%emt 0:00:04]} 68. Kd3 {[%emt 0:00:00]} Qe4+ {[%emt 0:00:13]} 69. Kd2 {[%emt 0:00:00]} Qb4+ {[%emt 0:00:06]} 70. Kd3 {[%emt 0:00:00]} Qd6+ {[%emt 0:00:45]} 71. Ke2 {[%emt 0:00:00]} b4 {[%emt 0:02:30]} 72. Qa8+ {[%emt 0:00:00]} Kb5 {[%emt 0:00:39]} 73. Qb7+ {[%emt 0:00:11]} Kxa5 {[%emt 0:00:15]} 74. Ke3 {[%emt 0:02:56]} Qe5+ {[%emt 0:00:38]} 75. Kd2 {[%emt 0:00:24]} Qd4+ {[%emt 0:00:31]} 76. Kc1 {[%emt 0:00:39]} Qe3+ {[%emt 0:00:22]} 77. Kd1 {[%emt 0:00:31]} Qd4+ {[%emt 0:00:36]} 78. Kc1 {[%emt 0:00:17]} Qc4+ {[%emt 0:00:51]} 79. Kd1 {[%emt 0:00:26]} Qb3+ {[%emt 0:00:14]} 80. Kd2 {[%emt 0:00:38]} Qb2+ {[%emt 0:00:16]} 81. Kd1 {[%emt 0:00:23]} Qd4+ {[%emt 0:00:13]} 82. Kc1 {[%emt 0:00:23]} Qe3+ {[%emt 0:00:12]} 83. Kd1 {[%emt 0:00:29]} Qd4+ {[%emt 0:01:39]} 84. Kc1 {[%emt 0:00:10]} Qc5+ {[%emt 0:00:09]} 85. Kd1 {[%emt 0:00:57]} Qd6+ {[%emt 0:00:13]} 86. Kc1 {[%emt 0:00:24]} Ka4 {[%emt 0:00:18] normal} 87. Qf3 {[%emt 0:00:49]} Qc5+ {[%emt 0:00:25]} 88. Kd2 {[%emt 0:00:29] normal} Qc3+ {[%emt 0:00:20] normal Ke1} 0-1

[Event "GER-ch Youth U14w 2019"]
[Site "Willingen"]
[Date "2019.06.12"]
[Round "5.10"]
[White "Peglau, Mirjam"]
[Black "Sinner, Joselyne"]
[Result "1-0"]
[ECO "C50"]
[WhiteElo "1746"]
[BlackElo "1521"]
[Annotator "NA"]
[PlyCount "52"]
[EventDate "2019.06.07"]
[EventType "swiss"]
[EventRounds "9"]
[EventCountry "GER"]
[SourceTitle "playchess.com"]
[Source "ChessBase"]
[SourceQuality "1"]
[TimeControl "40/5400+30:1800+30"]

1. e4 {[%emt 0:00:00]} e5 {[%emt 0:00:00]} 2. Nc3 {[%emt 0:00:00]} Bc5 {[%emt 0:06:56]} 3. Bc4 {[%emt 0:00:51]} Nf6 {[%emt 0:02:04]} 4. d3 {[%emt 0:00:33]} Nc6 {[%emt 0:07:31]} 5. Nf3 {[%emt 0:01:16]} a6 {[%emt 0:19:05]} 6. Bg5 {[%emt 0:04:04]} h6 {[%emt 0:04:50]} 7. Be3 {[%emt 0:02:39]} Be7 {[%emt 0:07:20]} 8. Qe2 {[%emt 0:04:06]} d6 {[%emt 0:00:45]} 9. O-O-O {[%emt 0:02:43]} Bg4 {[%emt 0:05:31]} 10. h3 {[%emt 0:01:51]} Bh5 {[%emt 0:02:41]} 11. g4 {[%emt 0:00:49]} Bg6 {[%emt 0:00:07]} 12. Nd2 {[%emt 0:06:52]} Qd7 {[%emt 0:01:42]} 13. f4 {[%emt 0:00:33]} Na5 {[%emt 0:12:42]} 14. f5 {[%emt 0:03:29]} Bh7 {[%emt 0:01:12]} 15. h4 {[%emt 0:00:36]} Nxc4 {[%emt 0:01:46]} 16. Nxc4 {[%emt 0:00:01]} O-O-O {[%emt 0:00:12]} 17. g5 {[%emt 0:00:33]} hxg5 {[%emt 0:00:15]} 18. hxg5 {[%emt 0:00:01]} Nxe4 {[%emt 0:10:17]} 19. dxe4 {[%emt 0:00:19]} Rde8 {[%emt 0:10:27]} 20. Rh2 {[%emt 0:00:33]} Bxf5 {[%emt 0:02:19]} 21. exf5 {[%emt 0:00:32]} Qxf5 {[%emt 0:00:52]} 22. Rf2 {[%emt 0:00:09]} Qg6 {[%emt 0:00:51]} 23. Qg4+ {[%emt 0:00:18]} Kb8 {[%emt 0:00:14]} 24. Nd5 {[%emt 0:00:54]} Bd8 {[%emt 0:00:40]} 25. Qf5 {[%emt 0:01:01]} Qxf5 {[%emt 0:01:04]} 26. Rxf5 {[%emt 0:00:01]} g6 {[%emt 0:00:42] normal} 1-0

[Event "GER-ch Youth U14w 2019"]
[Site "Willingen"]
[Date "2019.06.12"]
[Round "5.11"]
[White "Becker, Linda"]
[Black "Wagner, Margarethe"]
[Result "0-1"]
[ECO "C45"]
[WhiteElo "1683"]
[BlackElo "1741"]
[Annotator "NA"]
[PlyCount "80"]
[EventDate "2019.06.07"]
[EventType "swiss"]
[EventRounds "9"]
[EventCountry "GER"]
[SourceTitle "playchess.com"]
[Source "ChessBase"]
[SourceQuality "1"]
[TimeControl "40/5400+30:1800+30"]

1. e4 {[%emt 0:00:00]} e5 {[%emt 0:00:00]} 2. Nf3 {[%emt 0:00:00]} Nc6 {[%emt 0:00:00]} 3. d4 {[%emt 0:00:00]} exd4 {[%emt 0:00:01]} 4. Nxd4 {[%emt 0:00:00]} Bc5 {[%emt 0:00:22]} 5. Be3 {[%emt 0:00:13]} Qf6 {[%emt 0:00:50]} 6. c3 {[%emt 0:00:16]} Nge7 {[%emt 0:00:41]} 7. Bc4 {[%emt 0:00:48]} b6 {[%emt 0:01:29]} 8. Nc2 {[%emt 0:02:02]} Bxe3 {[%emt 0:10:15]} 9. Nxe3 {[%emt 0:00:15]} Bb7 {[%emt 0:03:36]} 10. Nd2 {[%emt 0:01:48]} Ne5 {[%emt 0:05:35]} 11. Be2 {[%emt 0:03:40]} O-O-O {[%emt 0:05:34]} 12. a4 {[%emt 0:06:11]} d5 {[%emt 0:09:21]} 13. O-O {[%emt 0:06:04]} dxe4 {[%emt 0:05:32]} 14. a5 {[%emt 0:00:24]} Qd6 {[%emt 0:02:36]} 15. axb6 {[%emt 0:11:50]} Qxd2 {[%emt 0:06:39]} 16. bxa7 {[%emt 0:04:17]} Qxd1 {[%emt 0:02:24]} 17. Ba6 {[%emt 0:02:16]} Qxf1+ {[%emt 0:03:00]} 18. Rxf1 {[%emt 0:00:44]} Kd7 {[%emt 0:01:28]} 19. Bxb7 {[%emt 0:01:57]} Ra8 {[%emt 0:00:26]} 20. Rd1+ {[%emt 0:01:35]} Ke6 {[%emt 0:00:23]} 21. Bxa8 {[%emt 0:02:21]} Rxa8 {[%emt 0:00:07]} 22. Rd4 {[%emt 0:02:57]} Rxa7 {[%emt 0:02:29]} 23. Rxe4 {[%emt 0:00:54]} Ra1+ {[%emt 0:01:31]} 24. Nf1 {[%emt 0:00:09]} Kd5 {[%emt 0:01:49]} 25. Rd4+ {[%emt 0:02:13]} Ke6 {[%emt 0:02:06]} 26. f3 {[%emt 0:01:15]} N7c6 {[%emt 0:01:35]} 27. Re4 {[%emt 0:02:29]} Kd6 {[%emt 0:02:29]} 28. Re2 {[%emt 0:02:47]} Kc5 {[%emt 0:03:18]} 29. Kf2 {[%emt 0:01:22]} Nd3+ {[%emt 0:00:50]} 30. Kg1 {[%emt 0:02:25]} Kc4 {[%emt 0:02:22]} 31. Rd2 {[%emt 0:01:39]} Rb1 {[%emt 0:02:31]} 32. g3 {[%emt 0:06:10]} Nce5 {[%emt 0:02:05]} 33. Kg2 {[%emt 0:00:58]} Rxb2 {[%emt 0:01:47]} 34. Rxb2 {[%emt 0:00:35]} Nxb2 {[%emt 0:00:06]} 35. Ne3+ {[%emt 0:00:30]} Kd3 {[%emt 0:00:11]} 36. Kf2 {[%emt 0:00:55]} c5 {[%emt 0:01:46]} 37. f4 {[%emt 0:00:20]} Nec4 {[%emt 0:01:12]} 38. Nf5 {[%emt 0:01:03]} g6 {[%emt 0:00:34]} 39. Nh6 {[%emt 0:00:22]} Nd6 {[%emt 0:00:26]} 40. Kf3 {[%emt 0:00:49]} Kxc3 {[%emt 0:00:48] normal} 0-1

[Event "GER-ch Youth U14w 2019"]
[Site "Willingen"]
[Date "2019.06.12"]
[Round "5.12"]
[White "Avetyan, Manan"]
[Black "Berghold, Lotta"]
[Result "1/2-1/2"]
[ECO "C44"]
[WhiteElo "1307"]
[BlackElo "1471"]
[Annotator "NA"]
[PlyCount "52"]
[EventDate "2019.06.07"]
[EventType "swiss"]
[EventRounds "9"]
[EventCountry "GER"]
[SourceTitle "playchess.com"]
[Source "ChessBase"]
[SourceQuality "1"]
[TimeControl "40/5400+30:1800+30"]

1. e4 {[%emt 0:00:00]} e5 {[%emt 0:00:00]} 2. Nf3 {[%emt 0:00:00]} Nc6 {[%emt 0:00:00]} 3. d4 {[%emt 0:00:00]} exd4 {[%emt 0:00:00]} 4. Nxd4 {[%emt 0:00:00]} Qh4 {[%emt 0:00:00]} 5. Nc3 {[%emt 0:00:00]} Bb4 {[%emt 0:00:03]} 6. Be2 {[%emt 0:00:14]} Qxe4 {[%emt 0:04:06]} 7. Ndb5 {[%emt 0:01:16]} Bxc3+ {[%emt 0:00:19]} 8. bxc3 {[%emt 0:00:26]} Kd8 {[%emt 0:00:34]} 9. O-O {[%emt 0:02:25]} a6 {[%emt 0:07:40]} 10. Nd4 {[%emt 0:08:18]} Nxd4 {[%emt 0:00:18]} 11. cxd4 {[%emt 0:00:15]} Nf6 {[%emt 0:07:23]} 12. Bf3 {[%emt 0:10:44]} Qf5 {[%emt 0:01:31]} 13. Re1 {[%emt 0:04:02]} Re8 {[%emt 0:03:42]} 14. Rxe8+ {[%emt 0:03:26]} Kxe8 {[%emt 0:01:51]} 15. Ba3 {[%emt 0:06:39]} d6 {[%emt 0:05:11]} 16. c4 {[%emt 0:13:00]} Rb8 {[%emt 0:22:40]} 17. Rb1 {[%emt 0:16:12]} Qd7 {[%emt 0:16:02]} 18. Qd2 {[%emt 0:13:44]} Kd8 {[%emt 0:09:02]} 19. Qg5 {[%emt 0:03:36]} Qf5 {[%emt 0:00:44]} 20. Qxf5 {[%emt 0:04:48]} Bxf5 {[%emt 0:00:06]} 21. Rxb7 {[%emt 0:00:17]} Rxb7 {[%emt 0:00:12]} 22. Bxb7 {[%emt 0:00:04]} Bc8 {[%emt 0:00:36]} 23. Bf3 {[%emt 0:00:55]} Be6 {[%emt 0:01:45]} 24. d5 {[%emt 0:01:16]} Bg4 {[%emt 0:00:33]} 25. Bxg4 {[%emt 0:00:07]} Nxg4 {[%emt 0:00:05]} 26. Bb2 {[%emt 0:01:03]} f6 {[%emt 0:02:30] normal} 1/2-1/2

[Event "GER-ch Youth U14w 2019"]
[Site "Willingen"]
[Date "2019.06.12"]
[Round "6.1"]
[White "Bashylina, Luisa"]
[Black "Doll, Rebecca"]
[Result "1/2-1/2"]
[ECO "C68"]
[WhiteElo "1886"]
[BlackElo "1678"]
[Annotator "NA"]
[PlyCount "34"]
[EventDate "2019.06.07"]
[EventType "swiss"]
[EventRounds "9"]
[EventCountry "GER"]
[SourceTitle "playchess.com"]
[Source "ChessBase"]
[SourceQuality "1"]
[TimeControl "40/5400+30:1800+30"]

1. e4 {[%emt 0:00:00]} e5 {[%emt 0:00:00]} 2. Nf3 {[%emt 0:00:00]} Nc6 {[%emt 0:00:00]} 3. Bb5 {[%emt 0:00:00]} a6 {[%emt 0:00:00]} 4. Bxc6 {[%emt 0:00:00]} dxc6 {[%emt 0:00:00]} 5. O-O {[%emt 0:00:00]} Bg4 {[%emt 0:00:06]} 6. h3 {[%emt 0:00:07]} h5 {[%emt 0:00:48]} 7. d3 {[%emt 0:00:30]} Qf6 {[%emt 0:00:29]} 8. Be3 {[%emt 0:01:02]} Bxf3 {[%emt 0:02:13]} 9. Qxf3 {[%emt 0:00:04]} Qxf3 {[%emt 0:00:16]} 10. gxf3 {[%emt 0:00:04]} g6 {[%emt 0:00:51]} 11. Nd2 {[%emt 0:00:27]} Bg7 {[%emt 0:02:30]} 12. a4 {[%emt 0:04:15]} O-O-O {[%emt 0:08:07]} 13. a5 {[%emt 0:09:31]} f5 {[%emt 0:07:44]} 14. Nb3 {[%emt 0:04:58]} Nh6 {[%emt 0:09:01]} 15. Nc5 {[%emt 0:01:03]} Bf6 {[%emt 0:03:06]} 16. f4 {[%emt 0:11:18]} exf4 {[%emt 0:10:40]} 17. Bxf4 {[%emt 0:01:06]} Nf7 {[%emt 0:01:47] normal} 1/2-1/2

[Event "GER-ch Youth U14w 2019"]
[Site "Willingen"]
[Date "2019.06.12"]
[Round "6.2"]
[White "Reuter, Elisa"]
[Black "Buchholz, Maja"]
[Result "1-0"]
[ECO "C13"]
[WhiteElo "1923"]
[BlackElo "1657"]
[Annotator "NA"]
[PlyCount "49"]
[EventDate "2019.06.07"]
[EventType "swiss"]
[EventRounds "9"]
[EventCountry "GER"]
[SourceTitle "playchess.com"]
[Source "ChessBase"]
[SourceQuality "1"]
[TimeControl "40/5400+30:1800+30"]

1. e4 {[%emt 0:00:00]} e6 {[%emt 0:00:00]} 2. d4 {[%emt 0:00:00]} d5 {[%emt 0:00:00]} 3. Nc3 {[%emt 0:00:00]} Nf6 {[%emt 0:00:00]} 4. Bg5 {[%emt 0:00:00]} Be7 {[%emt 0:00:00]} 5. e5 {[%emt 0:00:00]} Nfd7 {[%emt 0:00:00]} 6. h4 {[%emt 0:00:00]} a6 {[%emt 0:00:25]} 7. Qg4 {[%emt 0:00:02]} Bxg5 {[%emt 0:00:20]} 8. hxg5 {[%emt 0:00:10]} c5 {[%emt 0:00:20]} 9. g6 {[%emt 0:00:56]} f5 {[%emt 0:00:20]} 10. Qf4 {[%emt 0:05:48]} h6 {[%emt 0:00:38]} 11. Nf3 {[%emt 0:00:49]} Nc6 {[%emt 0:00:44]} 12. Ne2 {[%emt 0:17:42]} Qb6 {[%emt 0:01:26]} 13. O-O-O {[%emt 0:05:43]} c4 {[%emt 0:02:08]} 14. g4 {[%emt 0:02:22]} Nf8 {[%emt 0:04:39]} 15. Nh4 {[%emt 0:05:22]} Qc7 {[%emt 0:01:55]} 16. gxf5 {[%emt 0:03:03]} exf5 {[%emt 0:00:38]} 17. Rg1 {[%emt 0:00:51]} Ne7 {[%emt 0:02:59]} 18. Qf3 {[%emt 0:02:38]} b5 {[%emt 0:01:39]} 19. Ng3 {[%emt 0:02:59]} Nfxg6 {[%emt 0:08:18]} 20. Nxg6 {[%emt 0:05:27]} Nxg6 {[%emt 0:00:32]} 21. Qxd5 {[%emt 0:05:35]} Ra7 {[%emt 0:04:36]} 22. Nh5 {[%emt 0:01:34]} Qf7 {[%emt 0:05:23]} 23. Qc6+ {[%emt 0:00:20]} Bd7 {[%emt 0:03:30]} 24. Qxg6 {[%emt 0:00:09]} Qxg6 {[%emt 0:00:22]} 25. Rxg6 {[%emt 0:00:09] normal} 1-0